bitfinex/quotes_ETHUSD_20250324
["timestamp","ask_amount","ask_price","bid_price","bid_amount"]
[1742795165112,4.86843,2054.1,2053.7,5.69832]
[1742795165311,5.66029,2054.0,2053.7,4.751]
[1742795165482,4.86884,2053.9,2053.6,0.95914932]
[1742795165678,4.86866,2054.0,2053.6,0.95914932]
[1742795165878,9.73735,2054.0,2053.6,4.86949]
[1742795166182,9.73742,2054.0,2053.6,4.86944]
[1742795166385,4.86879,2053.9,2053.5,9.62069]
[1742795166683,4.86866,2054.0,2053.5,11.00014203]
[1742795166884,9.73742,2054.0,2053.5,11.00014203]
[1742795167090,4.86889,2053.9,2053.5,6.13054203]
[1742795167299,5.69853,2053.8,2053.4,6.68348576]
[1742795167499,4.86888,2053.9,2053.4,16.30426576]
[1742795167709,4.86888,2053.9,2053.5,4.86972]
[1742795167895,4.86856,2054.0,2053.7,0.8196]
[1742795168216,4.86879,2053.9,2053.7,0.8196]
[1742795168718,4.86856,2054.0,2053.7,0.8196]
[1742795168905,9.73727,2054.0,2053.7,0.8196]
[1742795169113,4.86856,2054.0,2053.7,0.8196]
[1742795169297,9.73725,2054.0,2053.7,0.8196]
[1742795170025,4.86917,2053.8,2053.4,11.42487576]
[1742795170619,4.86929,2053.7,2053.4,6.55501576]
[1742795171000,4.86917,2053.8,2053.4,11.42494576]
[1742795171625,3.0,2053.8,2053.4,11.42477576]
[1742795171923,4.86836,2054.1,2053.6,0.8196]
[1742795172128,3.0,2054.0,2053.6,5.68886]
[1742795172422,7.86855,2054.0,2053.6,5.68886]
[1742795172626,3.0,2054.0,2053.6,7.02769514]
[1742795173010,7.86867,2054.0,2053.6,2.15843514]
[1742795173412,7.86867,2054.0,2053.6,7.02791514]
[1742795173715,7.86867,2054.0,2053.6,2.15843514]
[1742795173910,7.86867,2054.0,2053.6,5.68904]
[1742795174121,4.86878,2053.9,2053.6,0.8196]
[1742795174317,4.8693,2053.7,2053.4,6.55501576]
[1742795174522,4.86955,2053.6,2053.4,4.751]
[1742795174720,4.86975,2053.5,2053.2,0.8196]
[1742795174922,4.87001,2053.4,2053.1,0.98227783]
[1742795176031,4.86975,2053.5,2053.1,5.85291783]
[1742795176197,3.0,2053.4,2053.1,5.85291783]
[1742795177342,0.8294,2053.3,2053.1,0.98227783]
[1742795177638,0.8294,2053.3,2052.9,9.62196]
[1742795177841,7.8701,2053.4,2053.0,4.87089]
[1742795178042,8.65711,2053.4,2053.0,4.87089]
[1742795178230,8.65711,2053.4,2052.9,10.6095572]
[1742795178549,4.87034,2053.3,2052.9,10.6093972]
[1742795178840,4.87034,2053.3,2052.9,0.9874472]
[1742795178841,4.87084,2053.1,2052.9,0.9874472]
[1742795179005,4.8706,2053.2,2052.9,0.9874472]
[1742795179235,5.70019,2053.1,2052.9,0.9874472]
[1742795179764,4.87079,2053.1,2052.9,0.9874472]
[1742795180375,9.74159,2053.1,2052.9,0.9874472]
[1742795180567,4.87079,2053.1,2052.9,0.9874472]
[1742795181265,3.0,2053.2,2052.9,5.8583772]
[1742795181565,3.0,2053.2,2052.9,0.9874472]
[1742795181566,7.87048,2053.2,2052.9,0.9874472]
[1742795181776,12.74113,2053.2,2052.9,0.9874472]
[1742795181934,4.87069,2053.1,2052.9,0.9874472]
[1742795182129,4.87069,2053.1,2052.7,4.8714]
[1742795183040,4.86998,2053.4,2053.0,4.87078]
[1742795183234,4.86998,2053.4,2052.9,4.87107]
[1742795183439,3.0,2053.2,2052.9,4.87107]
[1742795183636,8.64745,2053.2,2052.8,0.95327777]
[1742795183850,4.87078,2053.1,2052.8,0.95327777]
[1742795184191,4.87078,2053.1,2052.7,5.64093]
[1742795184410,9.74167,2053.1,2052.7,4.87153]
[1742795184608,4.87078,2053.1,2052.7,4.87153]
[1742795184902,4.87103,2053.0,2052.6,4.752]
[1742795185260,4.87103,2053.0,2052.7,0.97923456]
[1742795185452,3.777,2053.2,2052.7,4.87161]
[1742795185871,8.64754,2053.2,2052.7,4.87161]
[1742795186270,8.64754,2053.2,2052.7,9.74322]
[1742795187288,8.64754,2053.2,2052.8,4.87136]
[1742795188299,3.777,2053.2,2052.8,4.87127]
[1742795188506,3.777,2053.2,2052.9,4.87115]
[1742795191504,3.0,2053.5,2053.2,4.87036]
[1742795191874,7.86975,2053.5,2053.1,4.87063]
[1742795192416,3.0,2053.5,2053.1,4.87052]
[1742795192592,3.0,2053.5,2053.1,5.63992]
[1742795192911,3.0,2053.5,2053.3,4.8701]
[1742795193108,3.0,2053.5,2053.2,4.87036]
[1742795193617,0.777,2053.6,2053.3,4.87016]
[1742795193776,4.86927,2053.7,2053.3,4.87008]
[1742795194106,3.0,2053.6,2053.3,9.74018]
[1742795194491,3.0,2053.6,2053.4,4.86995]
[1742795195069,3.777,2053.8,2053.1,0.7694]
[1742795195373,0.3777,2053.7,2053.4,4.86989]
[1742795195589,0.3777,2053.7,2053.3,4.87013]
[1742795195806,5.24706,2053.7,2053.3,4.87013]
[1742795196005,3.0,2053.6,2053.2,4.87044]
[1742795196164,8.772006,2053.6,2053.2,4.87044]
[1742795196607,8.772006,2053.6,2053.2,4.87026]
[1742795198067,3.902406,2053.6,2053.3,4.87018]
[1742795198268,3.0,2053.6,2053.3,4.87018]
[1742795198489,3.0,2053.6,2053.4,4.86991]
[1742795198674,10.51515,2053.8,2053.4,4.86991]
[1742795198675,3.0,2053.7,2053.4,4.86991]
[1742795199579,3.777,2053.8,2053.5,4.86968]
[1742795200304,3.0,2053.8,2053.5,4.86968]
[1742795200884,3.0,2053.8,2053.5,4.86962]
[1742795201895,3.0,2054.0,2053.7,4.86917]
[1742795202067,4.86832,2054.1,2053.7,5.62087]
[1742795202268,3.0,2054.0,2053.7,10.37187]
[1742795203197,4.86832,2054.1,2053.7,10.37187]
[1742795203668,4.86855,2054.0,2053.7,10.37187]
[1742795203871,4.86855,2054.0,2053.7,4.751]
[1742795204285,4.86854,2054.0,2053.7,4.751]
[1742795204478,7.86854,2054.0,2053.7,4.751]
[1742795205603,12.73729,2054.0,2053.7,4.751]
[1742795205912,12.73719,2054.0,2053.7,4.751]
[1742795206212,4.8688,2053.9,2053.7,4.751]
[1742795206780,4.86912,2053.8,2053.5,0.7517]
[1742795207794,4.86912,2053.8,2053.4,15.48712666]
[1742795208108,5.62822,2053.8,2053.4,10.61713666]
[1742795208705,4.86927,2053.7,2053.4,5.86713666]
[1742795208913,4.86927,2053.7,2053.3,10.38778]
[1742795209414,4.86927,2053.7,2053.3,9.61918]
[1742795209616,5.62883,2053.5,2053.2,4.87042]
[1742795211213,0.7591,2053.5,2053.2,4.87042]
[1742795211391,5.62866,2053.6,2053.2,4.87042]
[1742795211788,4.86974,2053.5,2053.2,4.87042]
[1742795211988,4.86974,2053.5,2053.1,6.61289741]
[1742795212323,3.0,2053.7,2053.1,1.74228741]
[1742795212540,3.7591,2053.8,2053.4,4.86987]
[1742795212686,3.0,2053.8,2053.5,4.86966]
[1742795212882,3.0,2053.9,2053.6,5.63808]
[1742795213996,3.0,2053.9,2053.6,0.7686]
[1742795214623,3.0,2053.9,2053.5,4.86969]
[1742795214624,7.86887,2053.9,2053.5,4.86969]
[1742795215847,7.86887,2053.9,2053.6,0.8016]
[1742795219018,3.0,2053.9,2053.6,5.67104]
[1742795219201,4.86784,2054.3,2053.6,0.8016]
[1742795219406,3.0,2054.2,2053.8,4.86887]
[1742795219629,9.73587,2054.3,2053.9,0.8016]
[1742795219825,4.86809,2054.2,2053.9,0.8016]
[1742795220030,7.86809,2054.2,2053.9,0.8016]
[1742795220230,4.86809,2054.2,2053.9,0.8016]
[1742795220625,3.0,2054.2,2053.9,5.67029]
[1742795220935,7.86819,2054.2,2053.8,4.86887]
[1742795221108,12.73646,2054.2,2053.8,9.61787]
[1742795221710,7.86819,2054.2,2053.8,14.48676]
[1742795222240,7.86819,2054.2,2053.8,9.61787]
[1742795222808,12.73644,2054.2,2053.8,9.61787]
[1742795223041,7.86819,2054.2,2053.8,14.48674]
[1742795223240,7.86819,2054.2,2053.8,9.61787]
[1742795223427,4.86867,2054.0,2053.6,4.86939]
[1742795223627,4.86867,2054.0,2053.6,9.61739]
[1742795223834,4.86867,2054.0,2053.6,9.61732]
[1742795224545,4.86867,2054.0,2053.6,4.86932]
[1742795224744,4.86867,2054.0,2053.6,9.61732]
[1742795225957,4.86886,2053.9,2053.6,4.748]
[1742795226315,4.86867,2054.0,2053.6,4.748]
[1742795226611,4.86879,2053.9,2053.6,9.61749]
[1742795227032,4.86867,2054.0,2053.6,9.61749]
[1742795228052,4.86867,2054.0,2053.7,0.8225]
[1742795231355,4.86867,2054.0,2053.7,5.69174]
[1742795234054,4.86867,2054.0,2053.6,9.61732]
[1742795235056,4.86867,2054.0,2053.6,14.48664]
[1742795235757,4.86867,2054.0,2053.6,9.61732]
[1742795238774,4.86867,2054.0,2053.6,9.61731]
[1742795240370,9.73745,2054.0,2053.6,9.61731]
[1742795240529,4.86867,2054.0,2053.6,9.61731]
[1742795241031,4.86879,2053.9,2053.6,4.748]
[1742795241230,0.8113,2053.8,2053.6,4.748]
[1742795241430,4.86943,2053.7,2053.5,1.68186266]
[1742795242028,4.86949,2053.6,2053.5,1.68186266]
[1742795242229,4.86943,2053.7,2053.5,0.95858206]
[1742795242428,4.86943,2053.7,2053.3,5.62159]
[1742795243085,4.86943,2053.7,2053.3,6.57528534]
[1742795245084,5.68033,2053.8,2053.3,0.95369534]
[1742795245085,4.86961,2053.6,2053.3,0.95369534]
[1742795245285,4.86976,2053.5,2053.3,0.95369534]
[1742795246274,4.86997,2053.4,2053.1,32.4174]
[1742795246469,4.86997,2053.4,2053.1,5.4974]
[1742795246674,4.86997,2053.4,2053.0,4.87082]
[1742795246675,9.74012,2053.4,2053.0,9.61682]
[1742795247472,4.86997,2053.4,2053.0,10.58124417]
[1742795247873,9.74015,2053.4,2053.0,10.58124417]
[1742795248172,4.87023,2053.3,2053.0,10.58124417]
[1742795248688,4.86997,2053.4,2053.0,10.58124417]
[1742795248893,3.0,2053.4,2053.0,12.23774041]
[1742795249074,3.0,2053.4,2053.1,4.87057]
[1742795249951,7.87011,2053.4,2053.0,7.36700041]
[1742795250184,9.74068,2053.3,2053.0,5.71042417]
[1742795250496,5.68181,2053.2,2053.0,0.96442417]
[1742795250688,4.87082,2053.1,2052.7,0.7514]
[1742795250893,4.87092,2053.0,2052.7,5.4974]
[1742795251074,4.87092,2053.0,2052.5,5.6235]
[1742795251257,4.87124,2052.9,2052.6,0.96760502]
[1742795251462,10.55391,2052.9,2052.6,0.96760502]
[1742795251859,4.87097,2053.0,2052.6,0.96760502]
[1742795252060,9.74207,2053.0,2052.6,5.83940502]
[1742795252597,4.87097,2053.0,2052.6,5.83940502]
[1742795253197,4.87116,2052.9,2052.6,5.83940502]
[1742795253895,5.68225,2053.0,2052.6,5.83940502]
[1742795254392,4.87065,2053.2,2052.7,4.8716]
[1742795254393,7.8707,2053.1,2052.7,4.8716]
[1742795255078,12.74157,2053.1,2052.7,4.8716]
[1742795255280,4.87092,2053.0,2052.6,7.02241837]
[1742795256400,4.87092,2053.0,2052.6,11.76941837]
[1742795257391,7.87073,2053.1,2052.7,4.87161]
[1742795257888,12.74161,2053.1,2052.7,4.87161]
[1742795258054,4.87102,2053.0,2052.6,11.76941837]
[1742795258594,3.0,2053.1,2052.8,5.65694]
[1742795259333,9.74125,2053.2,2052.8,5.65694]
[1742795259650,5.68711,2053.1,2052.6,11.37205502]
[1742795259872,4.87099,2053.0,2052.6,16.24380502]
[1742795260771,4.87099,2053.0,2052.6,11.37205502]
[1742795261180,4.87124,2052.9,2052.6,0.96760502]
[1742795262081,4.87097,2053.0,2052.6,5.83945502]
[1742795264996,4.87117,2052.9,2052.6,5.83945502]
[1742795265504,4.87097,2053.0,2052.6,5.83945502]
[1742795266414,4.87097,2053.0,2052.6,0.96760502]
[1742795266618,4.87097,2053.0,2052.6,5.83938502]
[1742795267318,9.74209,2053.0,2052.6,5.83938502]
[1742795267975,4.87148,2052.8,2052.6,0.96760502]
[1742795272809,3.0,2052.9,2052.6,0.96760502]
[1742795273614,7.87125,2052.9,2052.6,0.96760502]
[1742795275210,7.87125,2052.9,2052.5,9.61807]
[1742795276516,5.66265,2052.8,2052.3,4.87257]
[1742795276817,4.87171,2052.7,2052.4,0.95846364]
[1742795277177,9.74354,2052.7,2052.4,0.95846364]
[1742795278006,1.657465,2052.8,2052.4,0.95846364]
[1742795278209,4.657465,2052.8,2052.4,0.95846364]
[1742795278512,4.8721,2052.5,2052.4,0.95846364]
[1742795279508,5.46737956,2052.5,2052.4,0.95846364]
[1742795279826,9.25857956,2052.5,2052.4,0.95846364]
[1742795280639,4.87241,2052.4,2052.1,4.75903459]
[1742795280995,4.87258,2052.3,2052.1,0.01303459]
[1742795281620,5.66401,2052.2,2052.1,0.01303459]
[1742795283850,8.66401,2052.2,2052.1,0.01303459]
[1742795284302,3.0,2052.2,2052.1,0.01303459]
[1742795287239,8.66401,2052.2,2052.1,0.01303459]
[1742795287835,7.87281,2052.2,2052.1,0.01303459]
[1742795288239,8.66411,2052.2,2052.1,0.01303459]
[1742795289539,3.0,2052.2,2052.1,0.01303459]
[1742795290342,7.87281,2052.2,2052.1,0.01303459]
[1742795291335,3.0,2052.2,2052.1,0.01303459]
[1742795292546,5.66325,2052.6,2052.2,4.87272]
[1742795292945,3.0,2052.5,2052.2,4.87272]
[1742795293138,7.87211,2052.5,2052.1,4.88601459]
[1742795293840,7.87211,2052.5,2052.1,0.01303459]
[1742795294046,4.87235,2052.4,2052.1,0.01303459]
[1742795294346,8.77465,2052.5,2052.1,4.88607459]
[1742795294643,8.77465,2052.5,2052.1,9.75897459]
[1742795294950,3.9025,2052.5,2052.2,4.87273]
[1742795295138,3.0,2052.5,2052.2,4.87273]
[1742795296128,7.87212,2052.5,2052.1,5.88598827]
[1742795296338,7.87212,2052.5,2052.1,10.75890827]
[1742795296856,3.0,2052.5,2052.2,4.87271]
[1742795297050,4.87188,2052.6,2052.2,4.87271]
[1742795297247,3.0,2052.6,2052.3,4.87253]
[1742795297747,7.87196,2052.6,2052.2,4.87271]
[1742795297949,4.87214,2052.5,2052.2,4.87271]
[1742795298745,7.87196,2052.6,2052.1,1.01308827]
[1742795298746,3.0,2052.6,2052.1,1.01308827]
[1742795298955,7.87174,2052.7,2052.3,5.70109]
[1742795299144,3.0,2052.7,2052.4,4.87215]
[1742795299544,3.0,2052.7,2052.4,9.74432]
[1742795299723,3.0,2052.7,2052.4,4.87215]
[1742795299923,5.66288,2052.8,2052.4,9.74437]
[1742795300134,5.66288,2052.8,2052.4,4.87215]
[1742795300331,6.529168,2052.8,2052.4,4.87215]
[1742795301349,4.87165,2052.7,2052.4,4.87215]
[1742795302057,7.87145,2052.8,2052.4,9.61715]
[1742795303565,0.7561,2052.4,2052.1,1.00005368]
[1742795303868,3.37561,2052.3,2051.9,4.87337]
[1742795304159,4.87281,2052.2,2051.7,6.6434173]
[1742795304341,4.87281,2052.2,2051.8,4.87376]
[1742795304737,4.87281,2052.2,2051.7,6.6434173]
[1742795304972,4.87281,2052.2,2051.7,7.79518303]
[1742795305271,4.87331,2052.0,2051.7,2.92139303]
[1742795305571,4.87331,2052.0,2051.8,4.745]
[1742795306163,4.87306,2052.1,2051.8,4.745]
[1742795308975,4.87306,2052.1,2051.7,6.82612573]
[1742795309272,4.87282,2052.2,2051.8,4.745]
[1742795309771,4.87282,2052.2,2051.8,9.61869]
[1742795310080,0.7561,2052.4,2051.8,6.19653038]
[1742795310374,3.0,2052.5,2052.2,9.74534]
[1742795310572,7.87165,2052.7,2052.3,5.5226]
[1742795310724,4.87165,2052.7,2052.3,10.39507]
[1742795311172,3.0,2052.6,2052.3,10.39507]
[1742795311678,4.87165,2052.7,2052.3,10.39507]
[1742795311882,3.0,2052.6,2052.3,10.39507]
[1742795312966,5.68955,2052.5,2052.2,0.97296663]
[1742795313129,5.68955,2052.5,2052.1,9.61798]
[1742795313329,4.87235,2052.4,2052.1,4.745]
[1742795313764,4.87225,2052.5,2052.1,11.14476]
[1742795314130,12.74384,2052.6,2052.2,4.8728]
[1742795314384,7.87188,2052.6,2052.2,4.8728]
[1742795314738,7.87192,2052.6,2052.2,4.8728]
[1742795314967,7.87192,2052.6,2052.3,4.87255]
[1742795315180,7.87192,2052.6,2052.2,4.8728]
[1742795315473,7.87192,2052.6,2052.2,6.16213541]
[1742795316036,7.87192,2052.6,2052.2,6.16197541]
[1742795316836,7.87192,2052.6,2052.2,1.28933541]
[1742795317038,7.87192,2052.6,2052.1,6.27194]
[1742795317275,4.87219,2052.5,2052.1,11.14494]
[1742795317649,7.87192,2052.6,2052.2,4.8728]
[1742795318195,4.87215,2052.5,2052.1,11.14481]
[1742795318364,7.87192,2052.6,2052.2,6.16210241]
[1742795318997,7.87192,2052.6,2052.2,11.03478241]
[1742795319289,3.0,2052.7,2052.4,4.87225]
[1742795319896,7.87163,2052.7,2052.3,5.62476]
[1742795320380,7.87163,2052.7,2052.3,10.49716]
[1742795320557,7.87163,2052.7,2052.3,12.30300424]
[1742795320757,7.87163,2052.7,2052.4,4.87233]
[1742795320987,3.0,2052.7,2052.4,4.87233]
[1742795321198,3.0,2052.8,2052.5,4.87191]
[1742795321391,3.0,2052.8,2052.5,9.74378]
[1742795321596,3.0,2052.8,2052.5,4.87187]
[1742795323184,3.0,2052.8,2052.5,9.61587]
[1742795323897,7.87142,2052.8,2052.5,4.744]
[1742795325811,7.87142,2052.8,2052.5,9.6161]
[1742795326192,0.803,2052.7,2052.1,0.8246]
[1742795326391,0.803,2052.8,2052.4,4.87211]
[1742795326703,3.0,2052.7,2052.3,9.61551]
[1742795326866,7.87171,2052.7,2052.3,9.61551]
[1742795328623,7.87171,2052.7,2052.3,16.019187]
[1742795328908,5.67392,2053.0,2052.4,0.8246]
[1742795329104,4.87118,2052.9,2052.5,4.87199]
[1742795329314,4.87118,2052.9,2052.5,9.74393]
[1742795329482,4.87118,2052.9,2052.5,4.87194]
[1742795329910,4.87118,2052.9,2052.5,9.74393]
[1742795330082,4.87118,2052.9,2052.5,4.87194]
[1742795330407,4.87118,2052.9,2052.3,6.274277]
[1742795330408,5.67472,2052.7,2052.3,9.61555]
[1742795330709,0.803,2052.7,2052.4,4.87222]
[1742795331004,7.8714,2052.8,2052.4,4.87222]
[1742795331176,12.74293,2052.8,2052.4,4.87222]
[1742795331495,7.8714,2052.8,2052.4,4.87222]
[1742795334611,12.743,2052.8,2052.4,4.87222]
[1742795335110,7.8714,2052.8,2052.4,4.87222]
[1742795335603,3.0,2052.8,2052.3,4.743]
[1742795335910,0.8175,2053.1,2052.8,4.8712]
[1742795336079,5.68773,2053.3,2052.9,4.87099]
[1742795336281,3.0,2053.2,2052.9,4.87099]
[1742795336489,0.8175,2053.3,2052.9,4.87099]
[1742795336808,3.0,2053.3,2053.0,9.7415]
[1742795337113,3.0,2053.3,2053.0,4.8707]
[1742795337985,3.0,2053.3,2052.9,6.656439]
[1742795338179,7.87024,2053.3,2052.9,4.87104]
[1742795338387,0.8175,2053.2,2052.9,9.74208]
[1742795338670,0.8175,2053.2,2053.0,4.8709]
[1742795339601,3.0,2053.3,2053.0,4.8709]
[1742795339801,3.0,2053.3,2053.0,4.87073]
[1742795340817,7.87031,2053.3,2053.0,4.742]
[1742795340977,4.87058,2053.2,2053.0,4.742]
[1742795344446,4.87032,2053.3,2053.0,4.742]
[1742795344929,9.74073,2053.3,2053.0,4.742]
[1742795345210,4.87054,2053.2,2053.0,4.742]
[1742795349937,3.0,2053.2,2053.0,4.742]
[1742795350119,4.86955,2053.6,2053.2,0.7681]
[1742795350120,0.7786,2053.6,2053.2,0.7681]
[1742795350304,4.86926,2053.7,2053.2,0.7681]
[1742795350636,3.0,2053.7,2053.3,4.87016]
[1742795350810,7.86941,2053.7,2053.3,4.87016]
[1742795351342,4.86951,2053.6,2053.2,5.63848]
[1742795352244,4.86951,2053.6,2053.2,7.163576]
[1742795352538,7.86941,2053.7,2053.3,4.87016]
[1742795353141,12.73878,2053.7,2053.3,4.87016]
[1742795354140,4.86951,2053.6,2053.2,8.15722572]
[1742795354343,4.86951,2053.6,2053.2,13.02755572]
[1742795354545,7.86937,2053.7,2053.3,4.87018]
[1742795355036,8.64768,2053.8,2053.4,4.86985]
[1742795355239,8.64768,2053.8,2053.4,9.73966]
[1742795355422,8.64768,2053.8,2053.4,4.86981]
[1742795355599,8.64768,2053.8,2053.2,1.76187972]
[1742795355600,7.8693,2053.7,2053.2,1.76187972]
[1742795355802,7.8693,2053.7,2053.2,6.63219972]
[1742795355999,4.8695,2053.6,2053.2,6.63219972]
[1742795356633,4.8695,2053.6,2053.2,11.50245972]
[1742795356831,3.0,2053.6,2053.3,4.87018]
[1742795358233,0.7786,2053.5,2053.0,0.7681]
[1742795358533,0.7786,2053.5,2052.9,4.87114]
[1742795358534,4.8703,2053.3,2052.9,4.87114]
[1742795358842,5.64909,2053.2,2052.9,4.739]
[1742795360238,4.87103,2053.0,2052.7,4.739]
[1742795360603,4.87103,2053.0,2052.6,11.34052878]
[1742795362335,4.87103,2053.0,2052.6,16.21220878]
[1742795364538,4.87073,2053.1,2052.7,4.87163]
[1742795364839,0.7534,2053.4,2053.0,4.87079]
[1742795365027,0.7534,2053.6,2053.2,4.87035]
[1742795365218,7.86983,2053.5,2053.1,5.436499]
[1742795365917,3.0,2053.3,2053.0,9.175679]
[1742795366134,3.0,2053.3,2053.0,14.046399]
[1742795366340,3.0,2053.3,2053.1,4.87068]
[1742795367810,3.0,2053.4,2053.1,4.87068]
[1742795368341,3.0,2053.4,2053.1,5.83947633]
[1742795369138,7.86999,2053.4,2053.1,0.96879633]
[1742795369527,3.0,2053.4,2053.1,5.83946633]
[1742795370711,3.0,2053.4,2053.1,7.46321196]
[1742795371807,3.0,2053.5,2053.2,4.87038]
[1742795372422,7.86983,2053.5,2053.1,7.46312196]
[1742795374517,7.86983,2053.5,2053.1,5.83937633]
[1742795375848,4.87001,2053.4,2053.1,0.96879633]
[1742795376049,3.0,2053.2,2052.9,4.87114]
[1742795376347,7.87062,2053.2,2052.9,4.738]
[1742795380547,3.0,2053.2,2052.9,9.60911]
[1742795380856,3.0,2053.2,2052.9,11.83641612]
[1742795382959,3.0,2053.2,2052.9,9.60911]
[1742795383659,7.87044,2053.2,2052.9,9.60911]
[1742795384562,3.0,2053.2,2052.9,9.60911]
[1742795384765,5.70159,2053.5,2053.0,0.7926]
[1742795384938,5.70157,2053.5,2053.1,4.87057]
[1742795385138,3.0,2053.4,2053.1,4.87057]
[1742795385628,3.0,2053.4,2053.1,6.397777]
[1742795385827,3.0,2053.4,2053.2,4.8704]
[1742795386660,3.0,2053.4,2053.1,4.87057]
[1742795387826,3.0,2053.4,2053.1,9.74108]
[1742795388028,3.0,2053.4,2053.2,4.87042]
[1742795389260,3.0,2053.4,2053.1,4.8706]
[1742795394989,3.0,2053.4,2053.1,11.268321]
[1742795396074,3.0,2053.4,2053.1,6.397721]
[1742795398664,3.0,2053.4,2053.1,1.527211]
[1742795399388,7.86999,2053.4,2053.1,1.527211]
[1742795399584,4.87022,2053.3,2053.0,4.87076]
[1742795399784,4.87022,2053.3,2052.9,4.738]
[1742795399785,0.7997,2053.1,2052.8,11.87150116]
[1742795400090,4.87126,2052.9,2052.6,4.736]
[1742795400259,4.87126,2052.9,2052.6,6.26278]
[1742795400878,4.87126,2052.9,2052.6,7.25955499]
[1742795403401,4.87126,2052.9,2052.6,5.73277499]
[1742795403698,4.87126,2052.9,2052.6,4.736]
[1742795405411,4.87099,2053.0,2052.6,9.60783]
[1742795405703,0.7997,2053.1,2052.9,4.87107]
[1742795405866,7.87046,2053.2,2052.9,4.87107]
[1742795406068,0.798,2053.3,2053.0,4.87076]
[1742795406277,9.74024,2053.4,2053.0,5.68356]
[1742795406588,5.66458,2053.5,2053.1,4.87065]
[1742795406981,5.66458,2053.5,2053.0,11.48000385]
[1742795407394,4.87,2053.4,2053.0,11.48000385]
[1742795407813,4.87,2053.4,2053.0,12.43529851]
[1742795408798,4.87,2053.4,2053.0,17.30603851]
[1742795408992,10.53454,2053.5,2053.1,4.87067]
[1742795409294,4.86998,2053.4,2053.1,4.87067]
[1742795409594,3.0,2053.5,2053.2,4.87028]
[1742795410295,3.0,2053.6,2053.3,4.87011]
[1742795410693,7.86951,2053.6,2053.3,4.87011]
[1742795411892,7.86951,2053.6,2053.2,4.87039]
[1742795412096,7.86951,2053.6,2053.2,9.74065]
[1742795412897,3.0,2053.6,2053.3,4.87004]
[1742795413091,3.0,2053.7,2053.4,5.68262]
[1742795413288,3.0,2053.7,2053.4,10.41762]
[1742795415703,3.0,2053.7,2053.4,11.37967717]
[1742795416702,0.7948,2053.9,2053.4,6.50985717]
[1742795417009,0.7948,2054.3,2053.5,0.8128]
[1742795417173,0.7948,2054.6,2054.0,4.86836]
[1742795417369,0.7948,2054.6,2054.4,4.86746]
[1742795417568,0.7948,2054.6,2054.2,4.86786]
[1742795417785,4.86745,2054.5,2054.1,9.60326]
[1742795418215,7.86763,2054.4,2054.1,9.60326]
[1742795418585,7.86763,2054.4,2054.1,4.735]
[1742795423297,12.73543,2054.4,2054.1,4.735]
[1742795423500,7.86763,2054.4,2054.1,4.735]
[1742795424312,0.7793,2054.3,2054.1,4.735]
[1742795425106,3.0,2054.4,2054.1,9.60321]
[1742795425281,3.0,2054.4,2054.1,10.74149472]
[1742795425481,3.0,2054.4,2054.2,5.65173]
[1742795425710,3.0,2054.5,2054.2,10.51963]
[1742795425909,5.64577,2054.9,2054.2,0.7838]
[1742795426091,4.86666,2054.8,2054.4,4.86749]
[1742795426281,3.0,2054.7,2054.4,9.73498]
[1742795426478,3.7793,2054.9,2054.6,4.86701]
[1742795427082,3.7793,2054.9,2054.5,9.60029]
[1742795427283,8.64574,2054.9,2054.5,9.60029]
[1742795428113,0.36349652,2055.2,2054.6,5.63669]
[1742795428114,5.63615,2055.1,2054.6,5.63669]
[1742795428415,4.86642,2054.9,2054.6,0.7696]
[1742795428715,3.0,2054.8,2054.5,11.047048]
[1742795429288,7.8667,2054.8,2054.5,6.179788]
[1742795429522,4.86689,2054.7,2054.5,4.733]
[1742795430017,7.86671,2054.8,2054.5,4.733]
[1742795430200,4.8669,2054.7,2054.5,4.733]
[1742795430401,3.0,2054.8,2054.5,4.733]
[1742795430402,7.86669,2054.8,2054.5,4.733]
[1742795430604,8.63689,2054.8,2054.5,4.733]
[1742795431131,1.633889,2054.8,2054.3,0.99474396]
[1742795431312,4.86751,2054.5,2054.2,4.732]
[1742795431831,4.86747,2054.5,2054.2,4.732]
[1742795433033,4.86747,2054.5,2054.2,5.68452024]
[1742795433332,5.63767,2054.5,2054.2,5.68452024]
[1742795433694,10.50522,2054.5,2054.2,5.68452024]
[1742795433933,5.63767,2054.5,2054.2,5.68452024]
[1742795434229,10.5052,2054.5,2054.2,5.68452024]
[1742795434524,5.63767,2054.5,2054.2,5.68452024]
[1742795436742,0.7702,2054.5,2054.2,5.68452024]
[1742795436901,3.0,2054.6,2054.3,4.86768]
[1742795437106,10.52351,2054.7,2054.3,4.86768]
[1742795438337,5.6564,2054.7,2054.3,4.86766]
[1742795438710,10.52347,2054.7,2054.3,4.86766]
[1742795438910,5.6564,2054.7,2054.4,4.86757]
[1742795439440,5.6564,2054.7,2054.3,4.86766]
[1742795439843,8.6564,2054.7,2054.6,0.9634783]
[1742795441645,7.867,2054.7,2054.6,0.9634783]
[1742795441844,7.867,2054.7,2054.4,4.86754]
[1742795442344,3.0,2054.7,2054.4,4.86738]
[1742795442512,3.0,2054.7,2054.5,0.99038667]
[1742795443034,7.86694,2054.7,2054.5,0.99038667]
[1742795444260,3.0,2054.7,2054.5,0.99038667]
[1742795446519,7.86691,2054.7,2054.5,0.99038667]
[1742795446845,9.219213,2054.7,2054.5,0.99038667]